bitfinex-derivatives/quotes_BTCF0:USTF0_20250106
["timestamp","ask_amount","ask_price","bid_price","bid_amount"]
[1736143518592,0.045138,99719.0,99718.0,0.001]
[1736143519383,0.045138,99719.0,99718.0,0.0846]
[1736143524696,0.045138,99719.0,99718.0,0.001]
[1736143528486,0.00990586,99728.0,99718.0,0.001]
[1736143528790,0.1805072,99734.0,99718.0,0.001]
[1736143528983,0.045136,99723.0,99718.0,0.001]
[1736143530195,0.045136,99722.0,99718.0,0.001]
[1736143530399,0.12013643,99719.0,99718.0,0.001]
[1736143531685,0.045136,99722.0,99718.0,0.001]
[1736143532089,0.045136,99722.0,99719.0,0.00802]
[1736143534691,0.1201281,99720.0,99719.0,0.00802]
[1736143536191,0.1201281,99721.0,99719.0,0.00802]
[1736143537396,0.1201281,99720.0,99719.0,0.00802]
[1736143540592,0.1201281,99720.0,99719.0,1.50802]
[1736143541306,0.045136,99722.0,99719.0,1.50802]
[1736143542204,0.06339486,99730.0,99719.0,1.50802]
[1736143542405,0.06339486,99730.0,99725.0,0.3608]
[1736143542605,0.1805072,99734.0,99725.0,0.3608]
[1736143542907,0.1805072,99732.0,99725.0,0.3608]
[1736143543908,0.045134,99726.0,99725.0,0.3608]
[1736143544597,0.045134,99726.0,99725.0,0.3618]
[1736143545003,0.045134,99726.0,99725.0,0.3608]
[1736143545209,0.048134,99726.0,99725.0,0.3608]
[1736143545699,0.09691051,99726.0,99725.0,0.3608]
[1736143558408,0.09691051,99726.0,99725.0,0.36882]
[1736143562818,0.27750141,99726.0,99725.0,0.36882]
[1736143563912,0.23236741,99726.0,99725.0,0.36882]
[1736143564109,0.05177651,99726.0,99725.0,0.36882]
[1736143568116,0.36160001,99738.0,99725.0,0.36882]
[1736143568117,0.18054504,99734.0,99725.0,0.36882]
[1736143568320,0.18054504,99734.0,99733.0,0.766731]
[1736143568321,0.02488457,99734.0,99733.0,0.766731]
[1736143568627,0.02488457,99734.0,99733.0,2.266731]
[1736143569517,0.15042307,99741.0,99734.0,0.045131]
[1736143569715,0.15042307,99741.0,99740.0,0.045128]
[1736143570612,0.15142307,99741.0,99740.0,0.045128]
[1736143570924,0.15242307,99741.0,99740.0,0.045128]
[1736143571514,0.002,99741.0,99740.0,0.045128]
[1736143572109,0.001,99741.0,99740.0,0.045128]
[1736143573019,0.002,99741.0,99740.0,0.28442224]
[1736143573624,0.001,99741.0,99740.0,0.29244224]
[1736143574418,0.001,99741.0,99740.0,0.053148]
[1736143588222,0.001,99741.0,99740.0,1.553148]
[1736143588822,0.001,99741.0,99740.0,0.053148]
[1736143591125,0.01095942,99741.0,99740.0,0.053148]
[1736143593026,0.01095942,99741.0,99740.0,0.00802]
[1736143593027,0.05608742,99741.0,99740.0,0.00802]
[1736143600725,0.20623566,99741.0,99740.0,1e-08]
[1736143603332,0.10486185,99741.0,99740.0,1e-08]
[1736143604351,0.045138,99719.0,99718.0,0.17924964]
[1736143605625,0.045138,99719.0,99718.0,0.18363964]
[1736143605827,0.19511216,99719.0,99718.0,0.18363964]
[1736143606040,0.19511216,99719.0,99718.0,0.00439]
[1736143606243,0.20525049,99719.0,99718.0,0.00439]
[1736143607140,0.20525049,99719.0,99718.0,0.00739]
[1736143607535,0.05527633,99719.0,99718.0,0.00339]
[1736143607839,0.05527633,99719.0,99718.0,1.50339]
[1736143608343,0.05527633,99719.0,99718.0,0.00339]
[1736143610134,0.14515333,99719.0,99718.0,0.00339]
[1736143611641,0.14515333,99719.0,99707.0,1.5]
[1736143611851,0.045143,99708.0,99706.0,0.0766]
[1736143613246,0.045143,99708.0,99706.0,0.0816]
[1736143613445,0.045143,99708.0,99707.0,0.002]
[1736143614235,0.045143,99708.0,99706.0,0.0836]
[1736143614941,0.05528388,99708.0,99707.0,0.005]
[1736143615145,0.05528388,99708.0,99707.0,0.007]
[1736143616336,0.05528388,99708.0,99707.0,0.002]
[1736143616532,0.05528388,99708.0,99706.0,0.007]
[1736143617044,0.05528388,99708.0,99707.0,0.005]
[1736143617547,0.05528388,99708.0,99707.0,0.007]
[1736143618048,0.05528388,99708.0,99707.0,0.002]
[1736143619746,0.05528388,99708.0,99707.0,0.007]
[1736143630757,0.045147,99698.0,99691.0,0.17924964]
[1736143631147,0.3608,99702.0,99691.0,0.17924964]
[1736143631343,0.04515,99692.0,99691.0,0.17924964]
[1736143631960,0.04515,99692.0,99684.0,0.0792]
[1736143631961,0.04515,99692.0,99690.0,0.17924964]
[1736143632256,0.04515,99692.0,99691.0,0.009]
[1736143632257,0.40595,99692.0,99691.0,0.009]
[1736143632848,0.40595,99692.0,99691.0,0.006]
[1736143633458,0.40595,99692.0,99691.0,0.001]
[1736143633757,0.045153,99685.0,99684.0,0.0792]
[1736143634762,0.40751001,99692.0,99682.0,0.3608]
[1736143634763,0.045154,99683.0,99682.0,0.3608]
[1736143635861,0.045154,99683.0,99682.0,0.3618]
[1736143636054,0.045154,99683.0,99673.0,0.17924964]
[1736143636363,0.045159,99671.0,99670.0,0.25764964]
[1736143638162,0.045159,99671.0,99670.0,0.0784]
[1736143638869,0.046159,99671.0,99670.0,0.0864]
[1736143639465,0.046159,99671.0,99670.0,0.0894]
[1736143640265,0.406959,99671.0,99670.0,0.0894]
[1736143640973,0.406959,99671.0,99670.0,0.011]
[1736143641762,0.405959,99671.0,99670.0,0.009]
[1736143642176,0.4139606,99671.0,99670.0,0.009]
[1736143642669,0.4139606,99671.0,99670.0,0.008]
[1736143651874,0.045166,99656.0,99655.0,0.0784]
[1736143652283,0.045166,99656.0,99654.0,0.17924964]
[1736143652867,0.046166,99656.0,99655.0,0.014]
[1736143653474,0.045166,99656.0,99655.0,0.005]
[1736143653683,0.045166,99656.0,99654.0,0.003]
[1736143655083,0.045166,99656.0,99642.0,0.3608]
[1736143655280,0.045172,99643.0,99642.0,0.3608]
[1736143656587,0.045172,99643.0,99642.0,0.3618]
[1736143656782,0.045172,99643.0,99642.0,0.3648]
[1736143658282,0.045172,99643.0,99642.0,1.8648]
[1736143658488,0.05345728,99643.0,99642.0,1.8648]
[1736143659681,0.05345728,99643.0,99642.0,0.3648]
[1736143660282,0.05345728,99643.0,99642.0,0.004]
[1736143665288,0.045172,99643.0,99642.0,0.004]
[1736143665679,0.045172,99643.0,99642.0,1.504]
[1736143666280,0.13521762,99643.0,99642.0,1.504]
[1736143667380,0.13521762,99643.0,99642.0,0.004]
[1736143668104,0.49601762,99643.0,99642.0,0.004]
[1736143668987,0.52603283,99643.0,99642.0,0.004]
[1736143670289,0.405972,99643.0,99642.0,0.004]
[1736143676089,0.485472,99643.0,99642.0,0.004]
[1736143676391,0.625472,99643.0,99642.0,0.004]
[1736143676984,0.77544616,99643.0,99642.0,0.004]
[1736143677693,0.04518,99626.0,99625.0,1.5]
[1736143678089,0.04518,99626.0,99618.0,0.17924964]
[1736143678697,0.04518,99626.0,99619.0,1.5]
[1736143678901,0.04618,99626.0,99625.0,0.009]
[1736143679298,0.04518,99626.0,99619.0,1.50056]
[1736143679498,0.04618,99626.0,99624.0,0.3698]
[1736143679800,0.04618,99626.0,99625.0,0.004]
[1736143680000,0.04618,99626.0,99625.0,0.013]
[1736143680001,0.05479927,99626.0,99625.0,0.013]
[1736143680396,0.41559927,99626.0,99625.0,0.013]
[1736143680698,0.49869927,99626.0,99619.0,0.17924964]
[1736143680897,0.045182,99620.0,99619.0,0.17924964]
[1736143681098,0.49869927,99626.0,99606.0,0.0793]
[1736143681099,0.49925928,99626.0,99615.0,0.17924964]
[1736143681294,0.045184,99617.0,99615.0,0.17924964]
[1736143681602,0.045184,99617.0,99616.0,0.01720326]
[1736143682197,0.045184,99617.0,99616.0,0.0015057]
[1736143682599,0.13525664,99617.0,99616.0,0.0015057]
[1736143683515,0.13625664,99617.0,99616.0,0.005]
[1736143683912,0.046184,99617.0,99616.0,0.005]
[1736143684308,0.046184,99617.0,99616.0,0.003]
[1736143684509,0.046184,99617.0,99616.0,0.005]
[1736143691419,0.04519,99604.0,99603.0,0.3608]
[1736143692117,0.3608,99607.0,99600.0,0.1]
[1736143692422,0.045191,99601.0,99600.0,0.1]
[1736143693227,0.045191,99601.0,99600.0,0.103]
[1736143693722,0.045191,99601.0,99600.0,0.4638]
[1736143694026,0.045191,99602.0,99600.0,0.4638]
[1736143694210,0.045191,99602.0,99600.0,0.4668]
[1736143694416,0.001,99601.0,99600.0,0.4668]
[1736143695018,0.001,99601.0,99600.0,1.9668]
[1736143696123,0.001,99601.0,99600.0,0.4668]
[1736143701127,0.001,99601.0,99600.0,0.106]
[1736143710127,0.3618,99601.0,99600.0,0.106]
[1736143710635,0.001,99601.0,99600.0,0.106]
[1736143712634,0.001,99601.0,99600.0,0.105]
[1736143713538,0.001,99601.0,99600.0,0.102]
[1736143715221,0.001,99601.0,99600.0,1.602]
[1736143716544,0.001,99601.0,99600.0,1.6776]
[1736143716837,0.001,99601.0,99600.0,1.754]
[1736143717340,0.001,99601.0,99600.0,1.99329424]
[1736143717829,0.001,99601.0,99600.0,2.03848624]
[1736143718330,0.001,99601.0,99600.0,1.99329424]
[1736143718526,0.001,99601.0,99600.0,1.602]
[1736143720845,0.001,99601.0,99600.0,1.84292349]
[1736143721538,0.001,99601.0,99600.0,0.34292349]
[1736143723638,0.001,99601.0,99600.0,0.28269421]
[1736143725133,0.001,99601.0,99600.0,0.102]
[1736143727837,0.001,99601.0,99600.0,0.28270071]
[1736143729140,0.001,99601.0,99600.0,0.102]
[1736143732037,0.141,99601.0,99600.0,0.102]
[1736143733337,0.5018,99601.0,99600.0,0.102]
[1736143733538,0.5496412,99601.0,99600.0,0.102]
[1736143734439,0.5496412,99601.0,99600.0,0.101]
[1736143734744,0.72946807,99601.0,99600.0,0.101]
[1736143735144,0.72946807,99601.0,99600.0,0.1]
[1736143736041,0.5496412,99601.0,99600.0,0.1]
[1736143745460,0.72946807,99601.0,99600.0,0.1]
[1736143745653,0.72946807,99601.0,99585.0,0.00150617]
[1736143745857,0.045198,99586.0,99585.0,0.00150617]
[1736143747159,0.046198,99586.0,99585.0,0.00150617]
[1736143747359,0.046198,99586.0,99585.0,0.00450617]
[1736143748060,0.05507488,99586.0,99585.0,0.00150617]
[1736143748261,0.05507488,99586.0,99585.0,0.00450617]
[1736143754158,0.05507488,99586.0,99585.0,0.003]
[1736143755070,0.0549942,99586.0,99585.0,0.003]
[1736143756172,0.20505244,99586.0,99585.0,0.003]
[1736143758477,0.0549942,99586.0,99585.0,0.003]
[1736143759771,0.20505244,99586.0,99585.0,0.003]
[1736143760975,0.0549942,99586.0,99585.0,0.003]
[1736143763672,0.1038442,99586.0,99585.0,0.003]
[1736143763870,0.1038442,99586.0,99585.0,1e-06]
[1736143764175,0.045209,99561.0,99560.0,0.65820528]
[1736143765373,0.045209,99561.0,99560.0,0.3608]
[1736143767075,0.15013256,99563.0,99560.0,0.3608]
[1736143767076,0.15013256,99563.0,99560.0,1.8608]
[1736143767280,0.15013256,99563.0,99561.0,0.1555]
[1736143767484,0.15013256,99563.0,99561.0,0.2318]
[1736143767982,0.13515876,99563.0,99561.0,0.2318]
[1736143769289,0.045209,99563.0,99561.0,1.7318]
[1736143769976,0.046209,99563.0,99561.0,1.7318]
[1736143771180,0.046209,99563.0,99561.0,0.2318]
[1736143772586,0.001,99563.0,99561.0,0.277009]
[1736143773383,0.046208,99563.0,99561.0,0.277009]
[1736143773577,0.046208,99563.0,99561.0,0.28614949]
[1736143774074,0.046208,99563.0,99561.0,0.277009]
[1736143774676,0.046208,99563.0,99561.0,0.2318]
[1736143778082,0.13615854,99563.0,99561.0,0.2318]
[1736143778976,0.13615854,99563.0,99561.0,0.277009]
[1736143779585,0.046208,99563.0,99561.0,0.277009]
[1736143780884,0.13615854,99563.0,99561.0,0.277009]
[1736143783592,0.08995054,99562.0,99561.0,0.277009]
[1736143784389,0.11993301,99569.0,99567.0,0.045206]
[1736143784582,0.11993301,99569.0,99568.0,0.3608]
[1736143785080,0.045205,99570.0,99568.0,0.3608]
[1736143785278,0.36136001,99589.0,99568.0,0.3608]
[1736143785494,0.045203,99574.0,99571.0,0.045204]
[1736143786096,0.03253256,99577.0,99568.0,0.3608]
[1736143786385,0.1496,99619.0,99573.0,0.3608]
[1736143786584,0.28557533,99608.0,99603.0,0.3608]
[1736143786778,0.28557533,99608.0,99604.0,1.5]
[1736143786984,0.28557533,99608.0,99604.0,1.545189]
[1736143787891,0.12004372,99607.0,99604.0,1.545189]
[1736143789290,0.12104372,99607.0,99604.0,1.545189]
[1736143789594,0.002,99607.0,99604.0,1.545189]
[1736143792586,0.01106401,99607.0,99604.0,1.5]
[1736143792794,0.045189,99605.0,99603.0,0.3608]
[1736143794497,0.049189,99605.0,99603.0,0.3608]
[1736143794688,0.051189,99605.0,99603.0,0.3608]
[1736143796790,0.045189,99605.0,99603.0,0.3608]
[1736143796990,0.052189,99605.0,99603.0,0.3608]
[1736143797491,0.051189,99605.0,99603.0,0.3608]
[1736143798797,0.051189,99605.0,99600.0,0.3608]
[1736143799201,0.052189,99605.0,99600.0,0.3608]
[1736143799898,0.051189,99605.0,99600.0,0.3608]
[1736143800402,0.050189,99605.0,99600.0,0.3608]
[1736143800787,0.047189,99605.0,99600.0,0.3608]
[1736143801099,0.005,99605.0,99600.0,0.3608]
[1736143801897,0.005,99605.0,99603.0,0.04519]
[1736143802803,0.003,99605.0,99603.0,0.04519]
[1736143802997,0.005,99605.0,99603.0,0.04519]
[1736143803200,0.006,99605.0,99603.0,0.04519]
[1736143804402,0.006,99605.0,99604.0,1.5]
[1736143806509,0.005,99605.0,99604.0,1.5]
[1736143806806,0.008,99605.0,99604.0,1.5]
[1736143810403,0.008,99605.0,99600.0,0.3608]
[1736143810604,0.045191,99601.0,99600.0,0.3608]
[1736143811005,0.045191,99601.0,99600.0,1.8608]
[1736143812604,0.003,99605.0,99600.0,1.8608]
[1736143812806,0.005,99605.0,99600.0,2.2216]
[1736143813411,0.003,99601.0,99600.0,2.266792]
[1736143813609,0.005,99601.0,99600.0,2.266792]
[1736143813913,0.002,99601.0,99600.0,2.266792]
[1736143814509,0.005,99605.0,99604.0,0.04519]
[1736143815908,0.12004372,99609.0,99608.0,0.045188]
[1736143816309,0.12004372,99609.0,99608.0,0.405988]
[1736143816909,0.045186,99612.0,99609.0,0.045187]
[1736143818208,0.15028296,99615.0,99608.0,0.3608]
[1736143818416,0.045187,99610.0,99608.0,0.3608]
[1736143819211,0.15028296,99615.0,99608.0,0.3608]
[1736143819415,0.19546796,99615.0,99608.0,0.405988]
[1736143819613,0.15028296,99612.0,99608.0,0.405988]
[1736143819812,0.16028296,99612.0,99608.0,0.405988]
[1736143820110,0.16028296,99612.0,99610.0,0.045187]
[1736143820512,0.15028296,99612.0,99610.0,0.045187]
[1736143820909,0.20046796,99615.0,99610.0,0.045187]
[1736143821309,0.19846796,99615.0,99610.0,0.045187]
[1736143821608,0.004,99612.0,99610.0,0.045187]
[1736143822612,0.004,99612.0,99608.0,0.3608]
[1736143822814,0.045187,99610.0,99608.0,0.3608]
[1736143824511,0.054187,99610.0,99608.0,0.3608]
[1736143825218,0.054187,99610.0,99608.0,0.2434]
[1736143826608,0.20446996,99610.0,99608.0,0.2434]
[1736143827016,0.15928296,99610.0,99598.0,0.24078007]
[1736143827222,0.045191,99601.0,99598.0,0.24078007]
[1736143827922,0.1472,99600.0,99598.0,0.24078007]
[1736143828116,0.1472,99600.0,99599.0,1.5]
[1736143829122,0.045192,99599.0,99597.0,0.3608]
[1736143829513,0.045192,99599.0,99597.0,1.8608]
[1736143830114,0.002,99600.0,99599.0,0.045192]
[1736143830617,0.045186,99613.0,99599.0,0.045192]
[1736143830618,0.15028296,99605.0,99599.0,0.045192]
[1736143830827,0.15028296,99605.0,99604.0,0.04519]
[1736143832118,0.12024661,99605.0,99603.0,0.24078007]
[1736143832315,0.12024661,99605.0,99604.0,0.04519]
[1736143833417,0.15028296,99613.0,99611.0,0.045186]
[1736143834626,0.003,99613.0,99611.0,0.045186]
[1736143836027,0.005,99613.0,99611.0,0.045186]
[1736143838522,0.14472378,99622.0,99621.0,0.045182]
[1736143838722,0.14472378,99622.0,99621.0,0.405982]
[1736143838928,0.14472378,99622.0,99621.0,1.905982]
[1736143839427,0.21007652,99642.0,99641.0,0.045173]
[1736143839624,0.21007652,99642.0,99641.0,0.405973]
[1736143840919,5.2e-07,99642.0,99641.0,0.705973]
[1736143841124,0.1200376,99644.0,99642.0,0.045172]
[1736143841323,0.2100658,99668.0,99664.0,0.045163]
[1736143841622,0.2100658,99668.0,99664.0,0.405963]
[1736143841927,0.2100658,99668.0,99664.0,1.905963]
[1736143842830,0.045157,99676.0,99664.0,1.905963]
[1736143843024,0.00250569,99665.0,99664.0,1.905963]
[1736143843828,0.00350569,99665.0,99664.0,1.905963]
[1736143847834,0.00350569,99665.0,99664.0,0.3608]
[1736143848037,0.04866769,99665.0,99664.0,0.3608]
[1736143854031,0.00350569,99665.0,99664.0,0.405963]
[1736143858641,0.00350569,99665.0,99664.0,1.905963]
[1736143866045,0.01312253,99665.0,99664.0,1.905963]
[1736143869538,0.01312253,99665.0,99664.0,1.8608]
[1736143869849,0.01312253,99665.0,99664.0,0.3608]
[1736143870035,0.16522253,99665.0,99664.0,0.3608]
[1736143872457,0.16522253,99665.0,99664.0,0.6011922]
[1736143875144,0.16522253,99665.0,99664.0,0.3608]
[1736143883457,0.16522253,99665.0,99661.0,0.2403922]
[1736143883657,0.045163,99662.0,99661.0,0.2403922]
[1736143883847,0.205163,99662.0,99660.0,0.24073738]
[1736143884051,0.205163,99662.0,99647.0,0.35728794]
[1736143884052,0.04517,99648.0,99647.0,0.35728794]
[1736143885655,0.09398799,99648.0,99643.0,0.045172]
[1736143886450,0.09598799,99648.0,99643.0,0.045172]
[1736143886763,0.15017984,99647.0,99643.0,0.045172]
[1736143887852,0.19534984,99647.0,99643.0,0.045172]
[1736143888057,0.04517,99647.0,99643.0,0.045172]
[1736143888450,0.15017984,99649.0,99636.0,0.3608]
[1736143888764,0.045174,99639.0,99637.0,0.045174]
[1736143888958,0.001,99647.0,99636.0,0.3608]
[1736143889258,0.045174,99639.0,99636.0,0.3608]
[1736143889854,0.045174,99639.0,99636.0,0.3628]
[1736143890455,0.046174,99639.0,99636.0,0.3608]
[1736143891050,0.047174,99639.0,99636.0,0.3608]
[1736143893057,0.046174,99639.0,99636.0,0.3608]
[1736143893257,0.047174,99639.0,99636.0,0.3608]
[1736143893652,0.047174,99639.0,99636.0,0.405975]
[1736143895059,0.05711179,99639.0,99636.0,0.405975]
[1736143895265,0.05511179,99639.0,99636.0,0.405975]
[1736143895462,0.05511179,99639.0,99636.0,0.406975]
[1736143896261,0.00993779,99639.0,99636.0,0.406975]
[1736143896463,0.045175,99637.0,99636.0,0.406975]
[1736143896864,0.045175,99637.0,99636.0,1.906975]
[1736143898362,0.045175,99637.0,99636.0,1.905975]
[1736143898562,0.045175,99637.0,99636.0,1.906975]
[1736143899664,0.045175,99637.0,99636.0,1.905975]
[1736143899870,0.045175,99637.0,99636.0,1.906975]
[1736143903473,0.046175,99637.0,99636.0,1.905975]
[1736143903974,0.047175,99637.0,99636.0,1.905975]
[1736143905059,0.046175,99637.0,99636.0,1.905975]
[1736143905265,0.13726341,99637.0,99636.0,1.905975]
[1736143905775,0.13526341,99637.0,99636.0,1.906975]
[1736143906362,0.13826341,99637.0,99636.0,1.905975]
[1736143906570,0.048175,99637.0,99636.0,1.905975]
[1736143907670,0.050175,99637.0,99636.0,1.905975]
[1736143908270,0.047175,99637.0,99636.0,1.906975]
[1736143908477,0.045175,99637.0,99636.0,1.906975]
[1736143908768,0.045175,99637.0,99636.0,1.905975]
[1736143908960,0.045175,99637.0,99636.0,1.906975]
[1736143910670,0.046175,99637.0,99636.0,1.906975]
[1736143911084,0.001,99637.0,99636.0,1.906975]
[1736143911477,0.12010057,99639.0,99638.0,0.045174]
[1736143912685,0.002,99639.0,99638.0,0.045174]
[1736143914671,0.003,99639.0,99638.0,0.045174]
[1736143916377,0.001,99639.0,99638.0,0.045174]
[1736143916681,0.003,99639.0,99638.0,0.045174]
[1736143917080,0.001,99639.0,99638.0,0.045174]
[1736143917382,0.003,99639.0,99638.0,0.045174]
[1736143918489,0.15353783,99639.0,99638.0,0.045174]
[1736143919279,0.15253783,99639.0,99638.0,0.045174]
[1736143919796,0.002,99639.0,99638.0,0.045174]
[1736143920591,0.002,99639.0,99636.0,0.3608]
[1736143920790,0.002,99639.0,99637.0,0.045175]
[1736143922490,0.15253917,99639.0,99637.0,0.045175]
[1736143926183,0.15153917,99639.0,99637.0,0.045175]
[1736143926394,0.15253917,99639.0,99637.0,0.045175]
[1736143927494,0.15153917,99639.0,99637.0,0.045175]
[1736143927700,0.15253917,99639.0,99637.0,0.045175]
[1736143928101,0.002,99639.0,99637.0,0.045175]
[1736143929402,0.002,99639.0,99638.0,0.18074215]
[1736143930706,0.05081732,99639.0,99638.0,0.18074215]
[1736143931199,0.04981732,99639.0,99638.0,0.18074215]
[1736143931396,0.05081732,99639.0,99638.0,0.18074215]
[1736143935303,0.05081732,99639.0,99637.0,0.045175]
[1736143935910,0.04981732,99639.0,99637.0,0.045175]
[1736143936110,0.05081732,99639.0,99637.0,0.045175]
[1736143936306,0.04981732,99639.0,99637.0,0.045175]
[1736143936511,0.04881732,99638.0,99637.0,0.045175]
[1736143938006,0.04981732,99638.0,99637.0,0.045175]
[1736143939310,0.09499132,99638.0,99637.0,0.045175]
[1736143939906,0.09599132,99638.0,99637.0,0.045175]
[1736143940406,0.09599132,99638.0,99637.0,0.22589201]
[1736143941412,0.09599132,99638.0,99637.0,0.045175]
[1736143945309,0.09599132,99638.0,99636.0,5e-05]
[1736143945913,0.23599132,99638.0,99636.0,5e-05]
[1736143946608,0.045176,99634.0,99633.0,0.00199919]
[1736143947002,0.045179,99627.0,99626.0,0.18066069]
[1736143947209,0.405979,99627.0,99626.0,0.18066069]
[1736143947810,0.455979,99627.0,99613.0,0.30097398]
[1736143948006,0.405984,99617.0,99613.0,0.30097398]
[1736143948815,0.405984,99617.0,99615.0,0.18059255]
[1736143949809,0.405984,99617.0,99601.0,0.30097398]
[1736143949810,0.425984,99617.0,99601.0,0.30097398]
[1736143950011,0.045191,99602.0,99601.0,0.30097398]
[1736143950221,0.3608,99607.0,99594.0,1.5]
[1736143950411,0.045194,99595.0,99594.0,1.5]
[1736143950917,0.045195,99593.0,99589.0,0.3608]
[1736143951119,0.045196,99592.0,99589.0,0.3608]
[1736143951317,0.045196,99592.0,99589.0,1.8608]
[1736143951618,0.045196,99591.0,99589.0,1.8608]
[1736143951811,0.3707329,99607.0,99589.0,1.8608]
[1736143952014,0.14988178,99601.0,99597.0,0.42430815]
[1736143952309,0.14988178,99601.0,99599.0,0.045192]
[1736143953009,0.19507278,99601.0,99598.0,0.1559]
[1736143953210,0.14988178,99601.0,99598.0,0.0784]
[1736143953408,0.11985634,99603.0,99597.0,0.3608]
[1736143953609,0.045195,99592.0,99589.0,1.8614]
[1736143953813,0.3608,99599.0,99589.0,1.8608]
[1736143954008,0.045196,99591.0,99589.0,1.8608]
[1736143955214,0.046196,99591.0,99589.0,1.8608]
[1736143959422,0.046196,99591.0,99589.0,1.5]
[1736143960014,0.3608,99590.0,99589.0,1.5]
[1736143960215,0.3608,99590.0,99578.0,0.11175065]
[1736143960411,0.045201,99579.0,99578.0,0.11175065]
[1736143960618,0.3608,99580.0,99573.0,0.00150627]
[1736143960619,0.045203,99574.0,99573.0,0.00150627]
[1736143961122,0.045203,99574.0,99573.0,1.50150627]
[1736143962626,0.046203,99574.0,99573.0,1.50150627]
[1736143963629,0.046203,99574.0,99573.0,1.50350627]
[1736143973328,0.13605788,99574.0,99573.0,1.50350627]
[1736143974731,0.046203,99574.0,99573.0,1.50350627]
[1736143977338,0.13605788,99574.0,99573.0,1.50350627]
[1736143978332,0.046203,99574.0,99573.0,1.50350627]
[1736143980843,0.046203,99574.0,99573.0,0.00350627]
[1736143986939,0.19608478,99574.0,99573.0,0.00350627]
[1736143988137,0.09505379,99574.0,99573.0,0.00350627]
[1736143989337,0.046203,99574.0,99573.0,0.00350627]
[1736143990845,0.09505379,99574.0,99573.0,0.00350627]
[1736143992047,0.09505379,99574.0,99573.0,0.002]
[1736143996341,0.27491193,99574.0,99573.0,0.002]
[1736143997745,0.09505379,99574.0,99573.0,0.002]
[1736144001850,0.45585379,99574.0,99573.0,0.002]
[1736144003253,0.58528416,99574.0,99573.0,0.002]
[1736144006853,0.22448416,99574.0,99573.0,0.002]
[1736144007561,0.09505379,99574.0,99573.0,0.002]
[1736144008757,0.046203,99574.0,99573.0,0.002]
[1736144010062,0.22448823,99574.0,99573.0,0.002]
[1736144011668,0.23448823,99574.0,99573.0,0.002]
[1736144012566,0.18928523,99574.0,99556.0,0.3608]
[1736144012762,0.045211,99557.0,99556.0,0.3608]
[1736144013159,0.045211,99557.0,99556.0,1.8608]
[1736144013757,0.045211,99557.0,99556.0,0.3658]
[1736144014563,0.04985079,99557.0,99556.0,0.004]
[1736144014866,0.09506179,99557.0,99556.0,0.004]
[1736144015961,0.10506179,99557.0,99556.0,0.004]
[1736144016966,0.045215,99548.0,99545.0,0.3608]
[1736144018066,0.045215,99548.0,99547.0,0.00350675]
[1736144018469,0.046215,99548.0,99547.0,0.00350675]
[1736144019064,0.19618898,99548.0,99547.0,0.00350675]
[1736144020460,0.24618898,99548.0,99534.0,1.5]
[1736144020660,0.04522,99537.0,99534.0,1.50052]
[1736144020866,0.04522,99537.0,99534.0,0.00052]
[1736144021067,0.04522,99537.0,99527.0,0.156]
[1736144021568,0.04522,99537.0,99528.0,1.5]
[1736144021758,0.04522,99537.0,99528.0,1.5006]
[1736144022869,0.04522,99537.0,99536.0,0.3648]
[1736144023061,0.04622,99537.0,99536.0,0.004]
[1736144023667,0.04522,99537.0,99536.0,0.004]
[1736144023968,0.045224,99529.0,99527.0,0.156]
[1736144024571,0.001,99537.0,99522.0,0.3608]
[1736144024572,0.045226,99523.0,99522.0,0.3608]
[1736144025763,0.045226,99523.0,99522.0,1.8608]
[1736144027172,0.11976543,99526.0,99522.0,1.8638]
[1736144027375,0.11976543,99526.0,99524.0,0.045226]
[1736144027668,0.17996878,99538.0,99522.0,1.8638]
[1736144027669,0.11976543,99528.0,99522.0,1.86436]
[1736144027863,0.14997398,99534.0,99522.0,1.86436]
[1736144027864,0.14997398,99534.0,99522.0,2.2246]
[1736144028058,0.14997398,99534.0,99533.0,0.3608]
[1736144028264,0.17996878,99539.0,99533.0,0.3608]
[1736144028472,0.17996878,99539.0,99534.0,0.0775]
[1736144028866,0.17996878,99539.0,99538.0,1.5]
[1736144029069,0.05316878,99539.0,99538.0,1.5]
[1736144029367,0.01002433,99552.0,99538.0,1.5]
[1736144029368,0.045214,99552.0,99538.0,1.5]
[1736144029565,0.045215,99550.0,99547.0,0.3608]
[1736144030764,0.08978514,99548.0,99547.0,0.406015]
[1736144030971,0.08978514,99548.0,99547.0,0.407015]
[1736144031365,0.08978514,99548.0,99547.0,0.406015]
[1736144031569,0.08978514,99548.0,99547.0,0.408015]
[1736144032268,0.08978514,99553.0,99552.0,0.045213]
[1736144033771,0.045213,99553.0,99547.0,0.3618]
[1736144033967,0.001,99553.0,99547.0,0.407016]
[1736144034173,0.045215,99548.0,99547.0,0.3608]
[1736144035571,0.045215,99548.0,99547.0,0.3618]
[1736144036769,0.046215,99548.0,99547.0,0.3618]
[1736144036963,0.046215,99548.0,99547.0,0.3608]
[1736144037160,0.046215,99548.0,99547.0,0.3618]
[1736144037767,0.046215,99548.0,99547.0,0.001]
[1736144044472,0.00150731,99557.0,99556.0,0.045211]
[1736144044676,0.63123574,99595.0,99556.0,0.6608]
[1736144044677,0.2090563,99574.0,99556.0,0.6608]
[1736144044974,0.2090563,99574.0,99573.0,1.906004]
[1736144046473,0.2120563,99574.0,99573.0,1.906004]
[1736144046677,0.003,99574.0,99573.0,1.906004]
[1736144047467,0.007,99574.0,99573.0,1.906004]
[1736144074089,0.09682058,99574.0,99573.0,2.08628459]
[1736144075290,0.007,99574.0,99573.0,2.14699853]